Cogmind - Beta 15 @@@ ROGUE MODE // 2025.06.30 @ 21:45:22 Player: CheifClapdad Result: Destroyed by Y-45 Defender with Heavy Assault Rifle Performance ------------- Evolutions (2) 1000 Regions Visited (3) 600 Robots Destroyed (3) 15 Value Destroyed (134) 134 Prototype IDs (1) 20 Alien Tech Used (0) 0 Bonus (0) 0 TOTAL SCORE: 1769 Bonus ------- None Cogmind --------- Core Integrity 0/550 Matter 6/300 Energy 99/100 System Corruption 2% Temperature Cool (0) Movement Core (50) Location -8/Materials Parts ------- > --- POWER (1) -------- (None) > --- PROPULSION (4) --- (None) > --- UTILITY (4) ------ Advanced Targeting Computer > --- WEAPON (2) ------- (None) > --- INVENTORY (5) ---- Xenon Bombardment Thruster Xenon Bombardment Thruster Subdweller Machine Gun Grenade Launcher Peak State ------------ > --- POWER ------------ (None) > --- PROPULSION ------- Light Treads Compact Wheel Compact Wheel > --- UTILITY ---------- Small Storage Unit Improved Sensor Array Hardened Medium Armor Plating System Shield > --- WEAPON ----------- Heavy Particle Gun Battle Cannon > --- INVENTORY -------- Flight Unit Assault Rifle Subdweller Machine Gun High-powered Shotgun Grenade Launcher [Rating: 19] Favorites ----------- Power Light Ion Engine Engine Light Ion Engine Propulsion Compact Wheel Treads Light Treads Wheel Compact Wheel Hover Unit Hover Unit Flight Unit Xenon Bombardment Thruster Utility Small Storage Unit Device Improved Sensor Array Storage Small Storage Unit Processor Advanced Targeting Computer Hackware System Shield Protection Hardened Medium Armor Plating Weapon Battle Cannon Energy Gun Heavy Particle Gun Ballistic Gun Light Assault Rifle Ballistic Cannon Battle Cannon Build | -11 -10 -10 -8 ------- Run | Yrd Mat Sub Mat Slots Evolved 4 | . . . 4 Power . | . . . . Propulsion 2 | . . . 2 Utility 2 | . . . 2 Weapon . | . . . . Parts Attached 21 | 6 3 2 10 Power 2 | 1 . . 1 Engine 2 | 1 . . 1 Core . | . . . . Reactor . | . . . . Propulsion 8 | 2 3 . 3 Treads 2 | 1 1 . . Leg . | . . . . Wheel 2 | 1 . . 1 Hover 2 | . 2 . . Flight 2 | . . . 2 Utility 5 | 1 . . 4 Device 1 | . . . 1 Storage 1 | 1 . . . Processor 1 | . . . 1 Hackware 1 | . . . 1 Protection 1 | . . . 1 Artifact . | . . . . Weapon 6 | 2 . 2 2 Energy Gun 1 | . . . 1 Energy Cannon . | . . . . Ballistic Gun 4 | 2 . 1 1 Ballistic Cannon 1 | . . 1 . Launcher . | . . . . Special Weapon . | . . . . Impact Weapon . | . . . . Slashing Weapon . | . . . . Piercing Weapon . | . . . . Special Melee Weapon . | . . . . Unidentified Prototypes 1 | . . . 1 Parts Lost 10 | . . 2 8 Power 2 | . . 1 1 Propulsion 6 | . . 1 5 Utility 1 | . . . 1 Weapon 1 | . . . 1 Highest Loss Streak 6 | . . 1 6 To Critical Strikes . | . . . . Average Backups 5 | 2 6 8 4 Power . | . 1 1 . Propulsion 2 | . 3 5 1 Utility . | . . . . Weapon 2 | . 1 2 3 Tool/Special . | . . . . Unused Backups 5 | . . . 5 Power . | . . . . Propulsion 3 | . . . 3 Utility . | . . . . Weapon 2 | . . . 2 Tool/Special . | . . . . Average Slot Usage (%) 72 | . 85 70 68 Engine 5 | . 14 4 1 Treads 6 | . 11 . 10 Wheel 7 | . 4 . 15 Hover 11 | . 12 23 . Device 2 | . . . 6 Storage 11 | . 14 14 8 Hackware 1 | . . . 4 Protection 3 | . . . 7 Ballistic Gun 15 | . 28 22 4 Ballistic Cannon 5 | . . 5 8 Peak Build Rating 19 | 6 6 7 19 Average Rating 9 | 4 5 5 14 On Entrance 4 | . 6 6 6 Naked Turns 9 | . . . 9 Heaviest Build 23 | 11 11 12 23 Greatest Support 40 | 20 40 12 40 Greatest Overweight (x) 2 | . 1 1 2 Average Overweight (x) . | . . . . Largest Inventory Capacity 8 | 8 8 8 8 Average Capacity 7 | 6 8 8 7 Most Carried 8 | 4 8 8 7 Average Carried 5 | 2 6 8 4 Final Capacity 8 | 8 8 8 5 Final Carried 8 | 4 8 8 4 Class Distribution -------------------- 100% | Mutant Dominant Class ---------------- Mutant | -10/Materials Mutant | -10/Subcaves Mutant | -8/Materials Resources | -11 -10 -10 -8 ----------- Run | Yrd Mat Sub Mat Matter Collected 244 | 166 . 48 30 Remotely . | . . . . Salvage Created 35 | . . 20 15 Parts 2 | . . 2 . Haulers Intercepted . | . . . . Recyclers Shooed . | . . . . Parts Field Recycled . | . . . . Retrieved Matter . | . . . . Parts Self-Destructed . | . . . . Prevented . | . . . . Kills | -11 -10 -10 -8 ------- Run | Yrd Mat Sub Mat Combat Hostiles Destroyed 3 | . . 1 2 Melee 1 | . . . 1 Guns 2 | . . 1 1 Classes Destroyed 2 | . . 1 1 Grunt 2 | . . . 2 Subdweller 1 | . . 1 . Best Kill Streak 1 | . . 1 1 Combat Bots Only 1 | . . 1 1 Max Kills in Single Turn 1 | . . 1 1 Gunslinging . | . . . . Exploded . | . . . . Melee 1 | . . . 1 Uniques/NPCs Destroyed . | . . . . Combat | -11 -10 -10 -8 -------- Run | Yrd Mat Sub Mat Hostile Shots Fired 145 | . 3 17 125 Missed 52 | . 1 8 43 Hits 93 | . 2 9 82 Projectile 93 | . 2 9 82 Critical Strikes 3 | . . 1 2 Damage Taken 1679 | . 19 270 1390 Core 604 | . . 48 556 Absorbed by Shields . | . . . . Core Remaining (%) 90 | 100 . 80 . Volleys Fired 21 | . 1 12 8 Largest 2 | . 2 2 2 Hottest 63 | . 40 63 58 Shots Fired 41 | . 2 24 15 Gun 22 | . 2 12 8 Cannon 19 | . . 12 7 Launcher . | . . . . Special . | . . . . Kinetic 40 | . 2 24 14 Thermal 1 | . . . 1 Explosive . | . . . . Electromagnetic . | . . . . Robot Hit Streak 6 | . 1 5 6 Robot Miss Streak 2 | . 1 1 2 Penetration Max . | . . . . Secondary Targets . | . . . . Shots Hit Robots 22 | . 1 9 12 Core Hits 7 | . . 2 5 Critical Kills . | . . . . Critical Parts Destroyed . | . . . . Critical Strikes . | . . . . Melee Attacks . | . . . . Impact . | . . . . Slashing . | . . . . Piercing . | . . . . Sneak Attacks . | . . . . Combat Hostiles . | . . . . Follow-up Attacks . | . . . . Damage Inflicted 457 | . 7 171 279 Guns 197 | . 7 68 122 Cannons 220 | . . 96 124 Explosions . | . . . . Melee . | . . . . Ramming 40 | . . 7 33 Kinetic 417 | . 7 164 246 Thermal . | . . . . Explosive . | . . . . Electromagnetic . | . . . . Impact . | . . . . Slashing . | . . . . Piercing . | . . . . Highest Corruption 2 | . . . 2 Average Corruption 2 | . . . 2 Corruption Purged . | . . . . Corruption Blocked . | . . . . Overload Shots . | . . . . Overflow Damage 11 | . . . 11 Projectiles 11 | . . . 11 Explosions . | . . . . Melee . | . . . . Knockbacks 2 | . . 1 1 Impact . | . . . . Kinetic 2 | . . 1 1 Secondary . | . . . . Self-Inflicted Damage 3 | . . 3 . Shots . | . . . . Rammed 12 | . . 1 11 Targets Rammed 13 | . . 1 12 Kicked . | . . . . Crushed 1 | . . . 1 Highest Temperature 30 | . 4 . 30 Average Temperature 10 | . 3 . 11 Received Heat Transfer 558 | . . 63 495 Siege Activations . | . . . . Martial Activations . | . . . . Shielding Activations . | . . . . Robots Disrupted . | . . . . Combat Hostiles . | . . . . Robots Corrupted . | . . . . Combat Hostiles . | . . . . Parts Fried . | . . . . Impact Corruptions . | . . . . Robots Melted . | . . . . Combat Hostiles . | . . . . Parts Melted . | . . . . Heat Transferred . | . . . . Parts Sabotaged . | . . . . Parts Stolen . | . . . . Parts Stripped . | . . . . Power Chain Reactions . | . . . . Alert | -11 -10 -10 -8 ------- Run | Yrd Mat Sub Mat Maximum Alert Level . | . . . . Low Security (%) 100 | 100 100 . 100 Level 1 . | . . . . Level 2 . | . . . . Level 3 . | . . . . Level 4 . | . . . . Level 5 . | . . . . High Security . | . . . . Max Security . | . . . . Peak Influence 60 | . 60 . 20 Initial . | . . . . Average 4 | . 12 . 1 Influence Increases 130 | . 60 . 70 Destroy 0b10 Robot/C 40 | . . . 40 Lose Combat Pursuer 90 | . 60 . 30 Influence Decreases 115 | . 40 20 55 Entered New Map 10 | . . 10 . Time Decay 85 | . 40 10 35 Lost Part 20 | . . . 20 Squads Dispatched 3 | . 1 . 2 Investigation 1 | . . . 1 Extermination . | . . . . Reinforcement 2 | . 1 . 1 Assault . | . . . . Garrison . | . . . . Intercept . | . . . . Searches Triggered . | . . . . Construction Impeded . | . . . . Haulers Reinforced . | . . . . Active Scanning Responses . | . . . . Cargo Convoy Interrupts . | . . . . Stealth | -11 -10 -10 -8 --------- Run | Yrd Mat Sub Mat Distress Signals 2 | . 1 . 1 Communications Jammed . | . . . . Distress Signals . | . . . . Times Spotted 21 | . 4 4 13 Peak Tracking Total 10 | . 6 2 10 Tactical Retreats 5 | . 1 2 2 Traps | -11 -10 -10 -8 ------- Run | Yrd Mat Sub Mat Traps Triggered 2 | . . 1 1 Indirectly . | . . . . Trap Hack Attempts . | . . . . Triggered . | . . . . Disarmed . | . . . . Reprogrammed . | . . . . Reused . | . . . . Traps Extracted . | . . . . Installed . | . . . . Triggered . | . . . . Machines | -11 -10 -10 -8 ---------- Run | Yrd Mat Sub Mat Machines Disabled . | . . . . Max in Single Turn . | . . . . Machines Repaired . | . . . . Machines Dismantled . | . . . . Machines Sabotaged . | . . . . Overloaded Fab Kills . | . . . . Hacking | -11 -10 -10 -8 --------- Run | Yrd Mat Sub Mat Machines Accessed 2 | . 1 . 1 Terminals 2 | . 1 . 1 Fabricators . | . . . . Repair Stations . | . . . . Recycling Units . | . . . . Scanalyzers . | . . . . Garrison Access . | . . . . Total Hacks 6 | . 3 . 3 Successful 1 | . 1 . . Failed 5 | . 2 . 3 Catastrophic . | . . . . Database Lockouts . | . . . . Manual 6 | . 3 . 3 Terminals 6 | . 3 . 3 Fabricators . | . . . . Repair Stations . | . . . . Recycling Units . | . . . . Scanalyzers . | . . . . Garrison Access . | . . . . Terminal Hacks 1 | . 1 . . Branch Access Points 1 | . 1 . . Fabricator Hacks . | . . . . Repair Station Hacks . | . . . . Recycling Unit Hacks . | . . . . Scanalyzer . | . . . . Garrison Access Hacks . | . . . . Unauthorized Hacks . | . . . . Terminals . | . . . . Fabricators . | . . . . Repair Stations . | . . . . Recycling Units . | . . . . Scanalyzers . | . . . . Garrison Access . | . . . . Data Cores Recovered . | . . . . Used . | . . . . Hacking Detections 2 | . 1 . 1 Full Trace Events 1 | . . . 1 Feedback Events . | . . . . Feedback Blocked . | . . . . Robot Schematics Acquired . | . . . . Robots Built . | . . . . Authchips . | . . . . Time . | . . . . Total Robot Build Rating . | . . . . Part Schematics Acquired . | . . . . Parts Built . | . . . . Authchips . | . . . . Time . | . . . . Total Part Build Rating . | . . . . Parts Repaired . | . . . . Time . | . . . . Parts Recycled . | . . . . Recycled Matter . | . . . . Retrieved Matter . | . . . . Retrieved Components . | . . . . Parts Scanalyzed . | . . . . Part Schematics Acquired . | . . . . Parts Damaged . | . . . . Bothacking | -11 -10 -10 -8 ------------ Run | Yrd Mat Sub Mat Used RIF Installer . | . . . . Robots Hacked . | . . . . Non-combat . | . . . . Combat . | . . . . Robot Hacks Applied . | . . . . Relay Couplers Released . | . . . . Fabnet Peak Effective % . | . . . . Robots Rewired . | . . . . Allies Hacked . | . . . . Hacks Repelled . | . . . . Allies | -11 -10 -10 -8 -------- Run | Yrd Mat Sub Mat Total Allies . | . . . . Largest Group . | . . . . Highest-Rated Group . | . . . . Highest-Rated Ally . | . . . . Total Orders . | . . . . Ally Attacks . | . . . . Total Damage . | . . . . Kills . | . . . . Allies Corrupted . | . . . . Allies Melted . | . . . . Intel | -11 -10 -10 -8 ------- Run | Yrd Mat Sub Mat Active Infowar (turns) 409 | . . . 409 Sensors 409 | . . . 409 Robot Analysis Total . | . . . . Derelict Logs Recovered . | . . . . Drone Launches . | . . . . Drone Recoveries . | . . . . Exploration | -11 -10 -10 -8 ------------- Run | Yrd Mat Sub Mat Turns Passed 1372 | 124 274 442 532 Spaces Moved 1365 | 77 269 594 425 Core 87 | 6 . . 81 Treads 272 | 63 74 . 135 Legs . | . . . . Wheels 199 | 8 . . 191 Hover 789 | . 195 594 . Flight 18 | . . . 18 Fastest Speed 40 | 50 56 56 40 Average Speed 87 | 145 84 67 107 Slowest Speed 160 | 160 160 120 160 Overloaded Moves . | . . . . Propulsion Burnouts . | . . . . Robots Hopped . | . . . . Potential Cave-ins . | . . . . Cave-ins Triggered . | . . . . Exploration Rate (%) 23 | 4 31 28 31 Regions Visited 3 Branch Regions 1 Pre-discovered Areas . | . . . . Known Exits Taken . | . . . . Unknown Exits Taken 3 | 1 1 1 . Scrap Searched . | . . . . Spaces Dug . | . . . . Terrain Destroyed . | . . . . Melee . | . . . . Projectile . | . . . . AOE . | . . . . Terrain Rammed . | . . . . Walls Destroyed . | . . . . Machines Disabled . | . . . . Actions | -11 -10 -10 -8 --------- Run | Yrd Mat Sub Mat Total 1486 | 86 310 612 478 Wait 38 | . 29 . 9 Move 1362 | 76 268 593 425 Hop . | . . . . Pick Up 14 | 4 4 . 6 Fast Attach 15 | 6 2 3 4 Attach 8 | . . . 8 Detach . | . . . . Swap 5 | . 4 . 1 Drop 10 | . 2 3 5 Fire 21 | . 1 12 8 Melee . | . . . . Ram 1 | . . 1 . Kick . | . . . . Crush 12 | . . . 12 Escape Stasis . | . . . . Rewire . | . . . . Trap . | . . . . Miscellaneous . | . . . . Route ------- -11/Scrapyard -10/Materials (discovered 2 exits: Min / [*Sub]) -10/Subcaves -8/Materials History --------- Turn | Location | Event 12 | -11/Scrapyard | Discovered new exit (range 14) 125 | -11/Scrapyard | Entered Materials 226 | -10/Materials | Identified exit to Mines 301 | -10/Materials | Build established: Mutant 379 | -10/Materials | Discovered new exit (range 10) 399 | -10/Materials | Entered Subcaves 400 | -10/Subcaves | Approached by a straggling Scientist 558 | -10/Subcaves | Shifting Twisted Machinery released Hvy. Battle Rifle 580 | -10/Subcaves | Discovered new exit (range 10) 648 | -10/Subcaves | Shifting Twisted Machinery released Battle Cannon 655 | -10/Subcaves | Shifting Twisted Machinery released Sub. Machine Gun 666 | -10/Subcaves | A swath of the cavern ceiling suddenly collapsed 841 | -10/Subcaves | Entered Materials 841 | -8/Materials | Evolved 4 slots: Propulsion x2, Utility x2 1319 | -8/Materials | Released all parts (5) 1327 | -8/Materials | Core integrity fell below 50% 1347 | -8/Materials | Core integrity fell below 20% 1373 | -8/Materials | Destroyed by Y-45 Defender with Heavy Assault Rifle Last Messages --------------- 01322_ Slug penetrates Wall. 01326_ Critical hit (Burn: +37). 01328_ Acquired Adv. Targeting Computer. 01329_ Knocked back. 01330_ Acquired 1 matter. 01330_ U-05 Engineer builds a Wall. 01333_ K-01 Serf collects debris. 01340_ Acquired Xenon Bombardment Thruster. 01343_ Dropped Flight Unit. 01343_ Acquired Xenon Bombardment Thruster. 01343_ Dropped Assault Rifle. 01344_ Xenon Bombardment Thruster destroyed. 01344_ Acquired Xenon Bombardment Thruster. 01347_ Dropped Hpw. Shotgun. 01347_ Acquired Xenon Bombardment Thruster. 01354_ Triggered Shock Trap. 01354_ The floor emits a surge of raw power. 01354_ System corrupted (+2). 01354_ U-05 Engineer works on Matter Pump. 01354_ Xenon Bombardment Thruster destroyed. Map ----- +----------------------------------------------------+ | ?????????????????????????????????????????????????? | | ?????????????????????????????????????????????????? | | ?????????????????????????????????????????????????? | | ?????????????????????????????????????????????????? | | ???????????????????????????????#????????????####?? | | ???????????????????????????????# ???????????? | | ???????????????????????????????? ""??????????"" "" | | ???????????????????????????????? ""??????????"" "" | | ???????????????????????????????? ??????????"" "" | | ????????????????????????????????? ?????????? | | ????????????????????????????????? ?????????####?? | | ?????????????????????? ###+######/############### | | ????????????????????? | | ????????????????????? | | ????????????????????? | | ????????????????????????###+####### ##########+# | | ??????????????????????????????????# #???????? | | ??????????????????????????????????# #???????? ! | | ??????????????????????????????????# #???????= | | ??????????????????????????????????# #???????= | | ??????????????????????????????????# #??????== | | ??????????????????????????????????# #####?? | | ??????????????????????????????????# !!#?###### | | ??????????????????????????????????# !!#??????? | | ??????????????????????#######?????# !!#??????? | | ??????????????????????# @ !####### !!#??????? | | ??????????????????????# ! w !!#??????? | | ?????????????????+ Y[ !!#??????? | | ?????????????????# #### a #####??????? | | ??????????????????????#! ########+##??????????? | | ??????????????????????###+###????????????????????? | | ?????????????????????????????????????????????????? | | ?????????????????????????????????????????????????? | | ?????????????????????????????????????????????????? | | ?????????????????????????????????????????????????? | | ?????????????????????????????????????????????????? | | ??????????????????????????????????????????????#### | | ??????????????????????????????????????????????# "" | | ??????????????????????????????????????????????# | | ??????????????????????????????????????????????# | | ??????????????????????????????????????????????# | | ??????????????????????????????????????????????#### | | ???????????????????????????????????????????####### | | ???????????????????????????????????????????# | | ???????????????????????????????????????????# | | ???????????????????????????????????????????# | | ???????????????????????????????????????????# | | ???????????????????????????????????????????# | | ???????????????????????????????????????????# | | ???????????????????????????????????????????# | +----------------------------------------------------+ Best States ------------- Heat Dissipation 31 Energy Generation 10 Energy Capacity 125 Matter Stores 206 Matter Capacity 300 Sight Range 16 Robot Scan Range 15 Terrain Scan Density 10 Armor Coverage 225 Evasion (%) 62 Targeting Accuracy 8 Recoil Reduction 2 Defensive Hacking 10 Item Schematics ----------------- None Robot Schematics ------------------ None Fabricated ------------ Nothing Repaired ---------- Nothing Alien Tech Used ----------------- None Achievements -------------- None Challenges ------------ None Game ------ Seed LongswordRestorationDirector Manual? 0 Play Time 00:10:32 Cumulative 101.9 hours Start 2025.06.30 @ 21:35:34 End 2025.06.30 @ 21:45:22 Sessions 1 Manual Loads 0 Difficulty Rogue Special Mode None Game No. 137 Rogue 137 Adventurer 0 Explorer 0 Win Type - Total 1 Types 1/0/0/0/0/0/0/0/0/0 Lore% 40 Gallery% 52 Achievement% 47 Wizard Run 0 Options --------- Layout 1 ASCII 0 Keyboard 0 Movement Arrows Keybinds 0 Fullscreen 1 Font 24/Smallcaps Map View 50x35 Zoom Use 0% Tactical HUD 1 Map Filters NONE Filters NONE Steam X RUN: 933401d3-95ba-4b62-9a74-26319bb42ee7